fUSD/lending_fUSD_20260324
["ID","MTS","AMOUNT","RATE_DAILY","PERIOD"]
[408877479,1774378241659,-551.44,0.00015999,2]
[408877480,1774378241670,-551.44,0.00015999,2]
[408877481,1774378241681,-551.66553912,0.00015999,2]
[408877482,1774378241691,-526.80863898,0.00015999,2]
[408877483,1774378241700,-1942.0,0.00016,5]
[408877484,1774378241709,-338915.59463893,0.00016,2]
[408877485,1774378241718,-400.0,0.00016,2]
[408877486,1774378241728,-928680.39409281,0.00016,2]
[408877487,1774378241737,-293522.07456466,0.00016,2]
[408877488,1774378241746,-604.58578002,0.00016,2]
[408877489,1774378241755,-150.0,0.00016,2]
[408877490,1774378241765,-1055.26389071,0.00016,2]
[408877491,1774378241774,-150.0,0.00016,2]
[408877492,1774378241784,-11927.81455881,0.00016,2]
[408877493,1774378241793,-3632754.37979253,0.00016,2]
[408877494,1774378242287,-118493.4303279,0.00016,2]
[408877495,1774378242306,-5552.0,0.00016,2]
[408877496,1774378242317,-3149.61201621,0.00016,2]
[408877497,1774378242328,-405.99,0.00016,2]
[408877498,1774378242351,-43133.6656442,0.00016,2]
[408877499,1774378242361,-464.31085152,0.00016,2]
[408877505,1774378242857,-415.0,0.00015996,2]
[408877506,1774378242866,-1513274.21943907,0.00016,2]
[408877507,1774378242875,-200.0,0.00016,2]
[408877508,1774378242884,-195.0,0.00016,2]
[408877509,1774378242893,-600.0,0.00016,2]
[408877510,1774378242902,-1000.0,0.00016,2]
[408877511,1774378242911,-157374.04280494,0.00016,2]
[408877512,1774378242922,-1555.17783652,0.00016,2]
[408877514,1774378242960,-406308.66932907,0.00016,2]
[408877524,1774378243583,-500.0,0.00014789,2]
[408877525,1774378243592,-40.16205524,0.00014789,2]
[408877526,1774378243610,-459.83794476,0.00014789,2]
[408877527,1774378243619,-96324.26027604,0.00016,2]
[408877528,1774378245430,-2851.4045168,0.00014689,2]
[408877529,1774378245484,-456.96597722,0.00014689,2]
[408877530,1774378245495,-696.77283446,0.00014689,2]
[408877531,1774378245539,-582.7291639,0.00014689,2]
[408877532,1774378245551,-1393.0,0.00014689,2]
[408877533,1774378245657,-107680.4811745,0.00014689,2]
[408877534,1774378289038,3665.165,0.00014395,2]
[408877535,1774378289258,163.436,0.00014395,2]
[408877536,1774378349644,312.839,0.00014,2]
[408877537,1774378349667,188.161,0.00014,2]
[408877538,1774378357990,4811.849,0.00014452,2]
[408877539,1774378358009,5000.01,0.00014452,2]
[408877540,1774378358030,546.091,0.00014452,2]
[408877541,1774378386315,452.984,0.0001449,2]
[408877542,1774378460032,166.67,0.00014468,2]
[408877543,1774378493436,260.44,0.00014046,2]
[408877544,1774378523986,500.0,0.00013895,2]
[408877545,1774378543429,3073.825,0.00014046,2]
[408877546,1774378543450,2360.405,0.00014046,2]
[408877547,1774378656866,150.0,0.00014444,2]
[408877548,1774378710751,501.0,0.00014,2]
[408877549,1774378716009,150.0,0.00014444,2]
[408877550,1774378727423,200.72651587,0.0001449,2]
[408877551,1774378765948,150.0,0.00013939,2]
[408877552,1774378880963,1487.87848413,0.00013883,2]
[408877553,1774378880984,5000.01,0.00013883,2]
[408877554,1774378881004,3605.13151587,0.00013883,2]
[408877555,1774379007474,439.29,0.00013823,2]
[408877556,1774379040178,166.66,0.00013189,2]
[408877557,1774379040386,166.66,0.00013467,2]
[408877558,1774379040610,166.66,0.00013745,2]
[408877559,1774379040815,166.66,0.00014022,2]
[408877560,1774379041034,166.66,0.000143,2]
[408877561,1774379077368,122.28848413,0.00014442,2]
[408877562,1774379077390,27.71151587,0.00014442,2]
[408877563,1774379194839,250.0,0.00013,2]
[408877564,1774379216414,1081.23,0.00011507,2]
[408877565,1774379319846,150.0,0.00014442,2]
[408877566,1774379352455,3491.06848413,0.0001379,2]
[408877567,1774379352480,5000.01,0.0001379,2]
[408877568,1774379352501,4725.23151587,0.0001379,2]
[408877569,1774379368748,-3742.145,0.0001449,2]
[408877570,1774379368840,-5000.01,0.0001449,2]
[408877571,1774379368950,-5000.01,0.0001449,2]
[408877572,1774379369059,-5000.01,0.0001449,2]
[408877573,1774379371624,-5000.01,0.0001449,2]
[408877574,1774379371735,-5000.01,0.0001449,2]
[408877575,1774379371835,-5000.01,0.0001449,2]
[408877576,1774379371936,-5000.01,0.0001449,2]
[408877577,1774379372048,-5000.01,0.0001449,2]
[408877578,1774379372191,-5000.01,0.0001449,2]
[408877579,1774379372546,-5000.01,0.0001449,2]
[408877580,1774379378599,-5000.01,0.0001449,2]
[408877581,1774379383734,-5000.01,0.0001449,2]
[408877582,1774379398135,529.0,0.00014,2]
[408877583,1774379415942,1976.11851217,0.000144,2]
[408877592,1774379431878,-633.48923318,0.00014478,2]
[408877593,1774379431888,-300.0,0.00014489,2]
[408877594,1774379431898,-207.0,0.00014489,2]
[408877595,1774379431908,-1200.0,0.00014489,2]
[408877596,1774379431918,-500906.30792124,0.0001449,2]
[408877597,1774379431929,-82504.517497,0.0001449,2]
[408877598,1774379431940,-16060.51526877,0.0001449,2]
[408877599,1774379431951,-35910.98521423,0.0001449,2]
[408877600,1774379431969,-5719.49229652,0.0001449,2]
[408877601,1774379432018,-2500.02730912,0.0001449,2]
[408877602,1774379432105,-26755.19714784,0.0001449,2]
[408877603,1774379432116,-51150.80496968,0.0001449,2]
[408877604,1774379437642,-500.0,0.00014489,2]
[408877605,1774379437652,-500.0,0.00014489,2]
[408877606,1774379437661,-500.0,0.00014489,2]
[408877607,1774379437671,-241.48362425,0.00014489,2]
[408877608,1774379437682,-258.51637575,0.00014489,2]
[408877609,1774379437691,-500.0,0.00014489,2]
[408877610,1774379437701,-406.93395951,0.00014489,2]
[408877611,1774379437712,-93.06604049,0.00014489,2]
[408877612,1774379437725,-500.0,0.00014489,2]
[408877613,1774379437734,-313.36123705,0.00014489,2]
[408877614,1774379437746,-186.63876295,0.00014489,2]
[408877615,1774379437755,-65.12653578,0.00014489,2]
[408877616,1774379437767,-434.87346422,0.00014489,2]
[408877617,1774379437776,-500.0,0.00014489,2]
[408877618,1774379437785,-500.0,0.00014489,2]
[408877619,1774379437795,-500.0,0.00014489,2]
[408877620,1774379437804,-500.0,0.00014489,2]
[408877621,1774379437814,-500.0,0.00014489,2]
[408877622,1774379437823,-500.0,0.00014489,2]
[408877623,1774379437832,-500.0,0.00014489,2]
[408877624,1774379437841,-500.0,0.00014489,2]
[408877625,1774379437851,-251.03387343,0.00014489,2]
[408877627,1774379437861,-500.0,0.00014489,2]
[408877629,1774379437870,-500.0,0.00014489,2]
[408877631,1774379437879,-500.0,0.00014489,2]
[408877632,1774379437888,-104041.0664756,0.0001449,2]
[408877634,1774379437897,-500.30675433,0.00014573,2]
[408877636,1774379437906,-300.28216329,0.00014573,2]
[408877638,1774379437915,-448.24083087,0.00014573,2]
[408877639,1774379437924,-500.0,0.00014573,2]
[408877640,1774379437933,-500.25065648,0.00014573,2]
[408877641,1774379437942,-241.03734395,0.00014573,2]
[408877642,1774379437951,-500.0,0.00014573,2]
[408877643,1774379437961,-500.0,0.00014573,2]
[408877644,1774379437970,-500.0,0.00014573,2]
[408877645,1774379437979,-500.0,0.00014573,2]
[408877646,1774379437989,-166.66,0.00014578,2]
[408877647,1774379437998,-163.56089985,0.00014578,2]
[408877648,1774379438007,-250.0,0.00014582,2]
[408877649,1774379438016,-500.0,0.00014587,2]
[408877650,1774379438025,-500.0,0.00014587,2]
[408877651,1774379438034,-500.0,0.00014587,2]
[408877652,1774379438043,-231.3993217,0.00014587,2]
[408877653,1774379438052,-466.28317285,0.00014587,2]
[408877654,1774379438061,-500.0,0.00014587,2]
[408877655,1774379438071,-614.57238121,0.00014587,2]
[408877656,1774379438080,-500.0,0.00014587,2]
[408877657,1774379438089,-500.0,0.00014587,2]
[408877658,1774379438098,-300.0,0.00014587,2]
[408877659,1774379438108,-150.0,0.00014587,2]
[408877660,1774379438117,-841153.6453,0.00014588,2]
[408877661,1774379438127,-5000.0,0.00014589,2]
[408877662,1774379438136,-32984.9071,0.00014589,2]
[408877663,1774379438145,-2500.0,0.00014589,2]
[408877664,1774379438154,-287.95723037,0.0001459,2]
[408877665,1774379438163,-2932.132,0.0001459,2]
[408877666,1774379438172,-163.436,0.0001459,2]
[408877667,1774379438182,-6341.78779863,0.0001459,2]
[408877668,1774379438191,-161.14227157,0.0001459,2]
[408877669,1774379438200,-8279.17690614,0.0001459,2]
[408877670,1774379438210,-439.29,0.00014591,2]
[408877671,1774379438220,-200.0,0.000146,5]
[408877672,1774379438229,-13959.0,0.00014658,2]
[408877673,1774379438238,-500.26487115,0.00014673,2]
[408877674,1774379438247,-500.0,0.00014673,2]
[408877675,1774379438256,-501.38646377,0.00014673,2]
[408877676,1774379438265,-500.0,0.00014673,2]
[408877677,1774379438275,-500.0,0.00014673,2]
[408877678,1774379438285,-218.71564775,0.00014673,2]
[408877679,1774379438294,-500.0,0.00014673,2]
[408877680,1774379438304,-200.0,0.0001468,2]
[408877681,1774379438313,-500.0,0.0001468,2]
[408877682,1774379438323,-162.73195103,0.0001468,2]
[408877683,1774379438332,-233.20791569,0.0001468,2]
[408877684,1774379438341,-633.48923311,0.00014681,2]
[408877685,1774379438350,-151.0,0.00014686,2]
[408877686,1774379438360,-151.0,0.00014686,2]
[408877687,1774379438369,-151.0,0.00014686,2]
[408877688,1774379438379,-500.0,0.00014688,2]
[408877689,1774379438388,-500.0,0.00014688,2]
[408877690,1774379438397,-500.0,0.00014688,2]
[408877691,1774379438406,-500.0,0.00014688,2]
[408877692,1774379438416,-500.0,0.00014688,2]
[408877693,1774379438429,-500.0,0.00014688,2]
[408877694,1774379438438,-500.0,0.00014688,2]
[408877695,1774379438447,-500.0,0.00014688,2]
[408877696,1774379438456,-500.0,0.00014688,2]
[408877697,1774379438466,-159.34766407,0.00014688,2]
[408877698,1774379438475,-500.0,0.00014688,2]
[408877699,1774379438484,-500.0,0.00014688,2]
[408877700,1774379438493,-500.0,0.00014688,2]
[408877701,1774379438503,-500.0,0.00014688,2]
[408877702,1774379438512,-500.0,0.00014688,2]
[408877703,1774379438521,-500.0,0.00014688,2]
[408877704,1774379438530,-500.0,0.00014688,2]
[408877705,1774379438540,-500.0,0.00014688,2]
[408877706,1774379438549,-500.0,0.00014688,2]
[408877707,1774379438558,-500.0,0.00014688,2]
[408877708,1774379438568,-500.0,0.00014688,2]
[408877709,1774379438577,-500.0,0.00014688,2]
[408877710,1774379438587,-500.0,0.00014688,2]
[408877711,1774379438596,-500.0,0.00014688,2]
[408877712,1774379438606,-500.0,0.00014688,2]
[408877713,1774379438615,-500.0,0.00014688,2]
[408877714,1774379438625,-350.43176373,0.00014688,2]
[408877715,1774379438634,-500.0,0.00014688,2]
[408877716,1774379438643,-500.0,0.00014688,2]
[408877717,1774379438652,-500.0,0.00014688,2]
[408877718,1774379438662,-500.0,0.00014688,2]
[408877719,1774379438671,-500.0,0.00014688,2]
[408877720,1774379438681,-500.0,0.00014688,2]
[408877721,1774379438690,-500.0,0.00014688,2]
[408877722,1774379438699,-500.0,0.00014688,2]
[408877723,1774379438708,-500.0,0.00014688,2]
[408877724,1774379438719,-500.0,0.00014688,2]
[408877725,1774379438730,-500.0,0.00014688,2]
[408877726,1774379438739,-500.0,0.00014688,2]
[408877727,1774379438749,-391.0509546,0.00014688,2]
[408877728,1774379438759,-500.0,0.00014688,2]
[408877729,1774379438769,-500.0,0.00014688,2]
[408877730,1774379438779,-500.0,0.00014688,2]
[408877731,1774379438789,-500.0,0.00014688,2]
[408877732,1774379438800,-500.0,0.00014688,2]
[408877733,1774379438810,-500.0,0.00014688,2]
[408877734,1774379438820,-500.0,0.00014688,2]
[408877735,1774379438829,-500.0,0.00014688,2]
[408877736,1774379438839,-500.0,0.00014688,2]
[408877737,1774379438848,-500.0,0.00014688,2]
[408877738,1774379438858,-500.0,0.00014688,2]
[408877739,1774379438867,-500.0,0.00014688,2]
[408877740,1774379438877,-500.0,0.00014688,2]
[408877741,1774379438886,-500.0,0.00014688,2]
[408877742,1774379438895,-180.31740041,0.00014688,2]
[408877743,1774379438904,-500.0,0.00014688,2]
[408877744,1774379438913,-500.0,0.00014688,2]
[408877745,1774379438922,-500.0,0.00014688,2]
[408877746,1774379438931,-500.0,0.00014688,2]
[408877747,1774379438940,-500.0,0.00014688,2]
[408877748,1774379438949,-500.0,0.00014688,2]
[408877749,1774379438959,-500.0,0.00014688,2]
[408877750,1774379438969,-500.0,0.00014688,2]
[408877751,1774379438978,-500.0,0.00014688,2]
[408877752,1774379438988,-500.0,0.00014688,2]
[408877753,1774379438997,-631.81161049,0.00014688,2]
[408877754,1774379439006,-500.0,0.00014688,2]
[408877755,1774379439015,-500.0,0.00014688,2]
[408877756,1774379439025,-500.0,0.00014688,2]
[408877757,1774379439034,-500.0,0.00014688,2]
[408877758,1774379439043,-500.0,0.00014688,2]
[408877759,1774379439052,-500.0,0.00014688,2]
[408877760,1774379439061,-507.02157658,0.00014688,2]
[408877761,1774379439070,-500.0,0.00014688,2]
[408877762,1774379439079,-500.0,0.00014688,2]
[408877763,1774379439088,-500.0,0.00014688,2]
[408877764,1774379439097,-500.0,0.00014688,2]
[408877765,1774379439107,-500.0,0.00014688,2]
[408877766,1774379439116,-500.0,0.00014688,2]
[408877767,1774379439125,-500.0,0.00014688,2]
[408877768,1774379439134,-500.0,0.00014688,2]
[408877769,1774379439143,-500.0,0.00014688,2]
[408877770,1774379439151,-240.16411222,0.00014688,2]
[408877771,1774379439160,-500.0,0.00014688,2]
[408877772,1774379439169,-500.0,0.00014688,2]
[408877773,1774379439178,-500.0,0.00014688,2]
[408877774,1774379439188,-500.0,0.00014688,2]
[408877775,1774379439197,-500.0,0.00014688,2]
[408877776,1774379439206,-207.8534478,0.00014688,2]
[408877777,1774379439215,-572.28,0.00014688,2]
[408877778,1774379439225,-572.28,0.00014688,2]
[408877779,1774379439234,-572.28,0.00014688,2]
[408877780,1774379439243,-572.28,0.00014688,2]
[408877781,1774379439252,-572.28,0.00014688,2]
[408877782,1774379439263,-572.28,0.00014688,2]
[408877783,1774379439273,-572.28,0.00014688,2]
[408877784,1774379439282,-572.28,0.00014688,2]
[408877785,1774379439291,-572.28,0.00014688,2]
[408877786,1774379439300,-572.28,0.00014688,2]
[408877787,1774379439309,-500.0,0.00014688,2]
[408877788,1774379439318,-500.0,0.00014688,2]
[408877789,1774379439327,-500.0,0.00014688,2]
[408877790,1774379439336,-500.0,0.00014688,2]
[408877791,1774379439346,-500.0,0.00014688,2]
[408877792,1774379439355,-500.0,0.00014688,2]
[408877793,1774379439364,-500.0,0.00014688,2]
[408877794,1774379439373,-500.0,0.00014688,2]
[408877795,1774379439383,-500.0,0.00014688,2]
[408877796,1774379439392,-500.0,0.00014688,2]
[408877797,1774379439401,-500.0,0.00014688,2]
[408877798,1774379439410,-500.0,0.00014688,2]
[408877799,1774379439419,-500.0,0.00014688,2]
[408877800,1774379439428,-513.0801442,0.00014688,2]
[408877801,1774379439437,-500.0,0.00014688,2]
[408877802,1774379439446,-500.0,0.00014688,2]
[408877803,1774379439455,-500.0,0.00014688,2]
[408877804,1774379439465,-500.0,0.00014688,2]
[408877805,1774379439475,-500.0,0.00014688,2]
[408877806,1774379439484,-500.0,0.00014688,2]
[408877807,1774379439493,-500.0,0.00014688,2]
[408877808,1774379439502,-500.0,0.00014688,2]
[408877809,1774379439511,-526.80863898,0.00014688,2]
[408877810,1774379439520,-500.0,0.00014689,2]
[408877811,1774379439530,-500.0,0.00014689,2]
[408877812,1774379439539,-500.0,0.00014689,2]
[408877813,1774379439548,-500.0,0.00014689,2]
[408877814,1774379439558,-500.0,0.00014689,2]
[408877815,1774379439567,-500.0,0.00014689,2]
[408877816,1774379439577,-500.0,0.00014689,2]
[408877817,1774379439586,-500.0,0.00014689,2]
[408877818,1774379439595,-616.72336867,0.00014689,2]
[408877819,1774379439605,-572.28,0.00014689,2]
[408877820,1774379439614,-572.28,0.00014689,2]
[408877821,1774379439623,-572.28,0.00014689,2]
[408877822,1774379439632,-572.28,0.00014689,2]
[408877823,1774379439641,-572.28,0.00014689,2]
[408877839,1774379439650,-572.28,0.00014689,2]
[408877840,1774379439882,-500.0,0.00014689,2]
[408877841,1774379439892,-500.0,0.00014689,2]
[408877842,1774379439902,-623.11598405,0.00014689,2]
[408877843,1774379439911,-4586.34,0.000147,2]
[408877844,1774379439920,-400.0,0.000147,5]
[408877845,1774379439929,-6341.7877986,0.00014736,2]
[408877846,1774379439939,-8279.17690608,0.00014736,2]
[408877847,1774379439948,-918.65299411,0.00014781,2]
[408877848,1774379439957,-408.43146087,0.00014789,2]
[408877849,1774379439966,-500.0,0.00014789,2]
[408877850,1774379439975,-500.0,0.00014789,2]
[408877851,1774379439984,-500.0,0.00014789,2]
[408877852,1774379439993,-500.0,0.00014789,2]
[408877853,1774379440002,-500.0,0.00014789,2]
[408877854,1774379440011,-500.0,0.00014789,2]
[408877855,1774379440020,-150.0,0.000148,2]
[408877856,1774379440029,-700.0,0.000148,5]
[408877857,1774379440038,-287.95723036,0.00014808,2]
[408877858,1774379440047,-211.0,0.00014826,2]
[408877859,1774379440056,-154.29462543,0.00014869,2]
[408877860,1774379440065,-6341.7877986,0.00014881,2]
[408877861,1774379440074,-8279.17690608,0.00014881,2]
[408877862,1774379440083,-633.48923311,0.00014884,2]
[408877863,1774379440093,-500.0,0.00014889,2]
[408877864,1774379440102,-500.0,0.00014889,2]
[408877865,1774379440111,-500.0,0.00014889,2]
[408877866,1774379440120,-500.0,0.00014889,2]
[408877867,1774379440130,-179.0,0.00014895,2]
[408877868,1774379440138,-900.0,0.000149,5]
[408877869,1774379440148,-735.0,0.00014908,2]
[408877870,1774379440157,-500.0,0.00014962,2]
[408877871,1774379440167,-40362.07106771,0.0001499,2]
[408877872,1774379440176,-829.02685425,0.00014992,2]
[408877873,1774379440184,-2187.07870749,0.00014992,2]
[408877874,1774379440194,-2075.38355835,0.00014992,2]
[408877875,1774379440203,-300.0,0.00015,2]
[408877876,1774379440212,-168.0,0.00015018,2]
[408877877,1774379440221,-287.95723036,0.00015027,2]
[408877878,1774379440230,-6341.7877986,0.00015027,2]
[408877879,1774379440239,-8279.17690608,0.00015027,2]
[408877880,1774379440248,-2804.0,0.0001504,2]
[408877881,1774379440257,-633.48923311,0.00015087,2]
[408877882,1774379440266,-1000.0,0.00015121,2]
[408877883,1774379440275,-504.00492722,0.00015121,2]
[408877884,1774379440284,-500.45556563,0.00015121,2]
[408877885,1774379440293,-1000.0,0.00015121,2]
[408877886,1774379440302,-903.17353576,0.00015121,2]
[408877887,1774379440311,-268.89,0.00015145,2]
[408877889,1774379440320,-6341.7877986,0.00015172,2]
[408877891,1774379440329,-8279.17690608,0.00015172,2]
[408877893,1774379440339,-1767.0,0.00015194,5]
[408877894,1774379440348,-151.0,0.00015199,2]
[408877896,1774379440357,-500.0,0.00015199,2]
[408877897,1774379440366,-500.0,0.00015199,2]
[408877899,1774379440375,-695.39793187,0.00015199,2]
[408877901,1774379440385,-9552.16786547,0.00015199,2]
[408877902,1774379440394,-500.0,0.00015199,2]
[408877903,1774379440403,-500.0,0.00015199,2]
[408877904,1774379440412,-500.0,0.00015199,2]
[408877905,1774379440420,-500.0,0.00015199,2]
[408877906,1774379440430,-500.0,0.00015199,2]
[408877907,1774379440439,-500.0,0.00015199,2]
[408877908,1774379440456,-500.0,0.00015199,2]
[408877909,1774379440467,-500.0,0.00015199,2]
[408877910,1774379440477,-500.0,0.00015199,2]
[408877911,1774379440486,-500.0,0.00015199,2]
[408877912,1774379440496,-500.0,0.00015199,2]
[408877913,1774379440507,-500.0,0.00015199,2]
[408877914,1774379440519,-500.0,0.00015199,2]
[408877915,1774379440528,-500.0,0.00015199,2]
[408877917,1774379440537,-500.0,0.00015199,2]
[408877919,1774379440547,-500.0,0.00015199,2]
[408877921,1774379440557,-500.0,0.00015199,2]
[408877923,1774379440566,-500.0,0.00015199,2]
[408877925,1774379440575,-500.0,0.00015199,2]
[408877927,1774379440585,-500.0,0.00015199,2]
[408877929,1774379440594,-500.0,0.00015199,2]
[408877931,1774379440603,-500.0,0.00015199,2]
[408877933,1774379440614,-500.0,0.00015199,2]
[408877934,1774379440622,-500.0,0.00015199,2]
[408877935,1774379440632,-300.23375727,0.000152,2]
[408877936,1774379440641,-150.0,0.000152,2]
[408877937,1774379440650,-250.72299322,0.000152,2]
[408877938,1774379440659,-345.69390924,0.000152,2]
[408877939,1774379440668,-168.0,0.0001522,2]
[408877940,1774379440677,-1000.0,0.00015221,2]
[408877941,1774379440686,-500.0,0.00015221,2]
[408877942,1774379440695,-1000.0,0.00015221,2]
[408877943,1774379440705,-200.0,0.00015228,2]
[408877944,1774379440714,-270.3424235,0.00015236,2]
[408877945,1774379440728,-287.95723036,0.00015245,2]
[408877946,1774379440737,-161.14227155,0.00015245,2]
[408877947,1774379440747,-166.67,0.00015264,2]
[408877948,1774379440756,-633.48923311,0.00015291,2]
[408877949,1774379440766,-150.0,0.00015312,2]
[408877950,1774379440776,-6341.7877986,0.00015318,2]
[408877951,1774379440785,-8279.17690608,0.00015318,2]
[408877952,1774379440795,-205.26,0.00015354,2]
[408877953,1774379440804,-439.29,0.00015359,2]
[408877954,1774379440814,-501.0,0.0001537,2]
[408877955,1774379440828,-1200.0,0.000154,5]
[408877956,1774379440837,-414.88570855,0.00015403,2]
[408877957,1774379440846,-398.79,0.00015403,2]
[408877958,1774379440856,-436.52,0.00015403,2]
[408877959,1774379440866,-1324.0,0.00015418,2]
[408877960,1774379440876,-1324.0,0.00015441,2]
[408877961,1774379440886,-287.95723036,0.00015463,2]
[408877962,1774379440895,-6341.7877986,0.00015463,2]
[408877963,1774379440905,-8279.17690608,0.00015463,2]
[408877964,1774379440914,-150.58347309,0.00015474,2]
[408877965,1774379440925,-150.0,0.00015487,2]
[408877966,1774379440935,-633.48923311,0.00015494,2]
[408877967,1774379440945,-200.0,0.000155,5]
[408877968,1774379440954,-500.0,0.00015553,2]
[408877969,1774379440964,-150.0,0.00015566,2]
[408877970,1774379440974,-310.593105,0.00015582,7]
[408877971,1774379440983,-160.0,0.00015582,7]
[408877972,1774379440993,-164.962303,0.00015582,7]
[408877973,1774379441002,-169.924606,0.00015582,7]
[408877974,1774379441011,-168.0,0.00015586,2]
[408877975,1774379441021,-200.0,0.000156,5]
[408877976,1774379441030,-6341.7877986,0.00015609,2]
[408877977,1774379441039,-8279.17690608,0.00015609,2]
[408877978,1774379441048,-150.0,0.00015619,2]
[408877979,1774379441057,-168.0,0.00015655,2]
[408877980,1774379441066,-1500.0,0.00015668,2]
[408877981,1774379441076,-197.81018147,0.00015668,2]
[408877982,1774379441088,-1068.40091604,0.0001568,2]
[408877983,1774379441099,-479.832007,0.0001568,7]
[408877984,1774379441108,-167.242441,0.0001568,7]
[408877985,1774379441117,-287.95723036,0.00015682,2]
[408877986,1774379441130,-633.48923311,0.00015697,2]
[408877987,1774379441140,-200.0,0.000157,5]
[408877988,1774379441149,-2000.0,0.000157,2]
[408877989,1774379441159,-255.0,0.0001571,2]
[408877990,1774379441169,-264.67580688,0.00015754,2]
[408877991,1774379441182,-572.28,0.00015754,2]
[408877992,1774379441192,-6341.7877986,0.00015754,2]
[408877993,1774379441202,-8279.17690608,0.00015754,2]
[408877994,1774379441212,-1000.0,0.00015768,2]
[408877995,1774379441221,-1000.0,0.00015768,2]
[408877996,1774379441233,-1000.0,0.00015772,2]
[408877997,1774379441243,-200.0,0.00015776,2]
[408877998,1774379441253,-150.0,0.00015797,2]
[408877999,1774379441262,-200.0,0.000158,5]
[408878000,1774379441272,-2000.0,0.000158,2]
[408878001,1774379441282,-300.0,0.00015822,2]
[408878002,1774379441291,-152.6045041,0.00015834,2]
[408878003,1774379441301,-1215.0,0.0001584,2]
[408878004,1774379441311,-924.0,0.0001584,2]
[408878005,1774379441321,-2467.0,0.00015845,2]
[408878006,1774379441330,-6009.0,0.00015845,2]
[408878007,1774379441339,-420.0,0.00015866,2]
[408878008,1774379441349,-979.16666667,0.00015887,2]
[408878009,1774379441359,-160.0,0.00015887,2]
[408878010,1774379441369,-160.0,0.00015887,2]
[408878011,1774379441382,-2000.0,0.0001589,2]
[408878012,1774379441392,-287.95723036,0.000159,2]
[408878013,1774379441402,-6341.7877986,0.000159,2]
[408878014,1774379441412,-161.14227155,0.000159,2]
[408878015,1774379441421,-150.0,0.000159,2]
[408878016,1774379441431,-8279.17690608,0.000159,2]
[408878017,1774379441441,-701.0,0.000159,5]
[408878018,1774379441453,-25000.0,0.000159,3]
[408878019,1774379441462,-150.0,0.000159,2]
[408878020,1774379441472,-833.74761595,0.000159,2]
[408878021,1774379441481,-1845.0,0.000159,5]
[408878022,1774379441491,-2000.0,0.000159,2]
[408878023,1774379441500,-5000.0,0.00015926,2]
[408878024,1774379441510,-1680.0,0.00015938,2]
[408878025,1774379441519,-250.0,0.00015967,2]
[408878026,1774379441529,-400.0,0.0001597,2]
[408878027,1774379441539,-400.0,0.0001597,2]
[408878028,1774379441548,-400.0,0.0001597,2]
[408878029,1774379441558,-420.0,0.00015971,2]
[408878030,1774379441567,-500.0,0.00015973,2]
[408878031,1774379441580,-366.41832896,0.00015973,2]
[408878032,1774379441591,-500.0,0.00015973,2]
[408878033,1774379441600,-500.0,0.00015973,2]
[408878034,1774379441610,-500.0,0.00015973,2]
[408878035,1774379441620,-500.0,0.00015973,2]
[408878036,1774379441629,-500.0,0.00015973,2]
[408878037,1774379441639,-500.0,0.00015973,2]